[Event "Titled Tuesday Blitz February 01 A 2022"]
[White "Bortnyk, Olexandr"]
[Black "Sarana, Alexey"]
[WhiteFideId "14120828"]
[BlackFideId "24133795"]
[WhiteElo "2723"]
[BlackElo "2665"]
[Result "1-0"]
[Round "05"]
[TimeControl "180+1"]
[Date "2022.02.01"]
[WhiteClock "0:00:07"]
[BlackClock "0:00:04"]

1. e4 {[%clk 0:02:58]}  c5 {[%clk 0:02:53]} 2. c3 {[%clk 0:02:58]}  d5 {[%clk 0:02:53]} 3. exd5 {[%clk 0:02:59]}  Qxd5 {[%clk 0:02:53]} 4. d4 {[%clk 0:03:00]}  Nc6 {[%clk 0:02:54]} 5. Be3 {[%clk 0:03:00]}  Bf5 {[%clk 0:02:52]} 6. Na3 {[%clk 0:02:59]}  cxd4 {[%clk 0:02:50]} 7. Nf3 {[%clk 0:02:59]}  e5 {[%clk 0:02:48]} 8. Bc4 {[%clk 0:02:58]}  Qa5 {[%clk 0:02:17]} 9. Qb3 {[%clk 0:02:54]}  dxe3 {[%clk 0:01:42]} 10. Qxb7 {[%clk 0:02:47]}  exf2+ {[%clk 0:01:33]} 11. Ke2 {[%clk 0:02:39]}  Nge7 {[%clk 0:00:28]} 12. Qxa8+ {[%clk 0:02:33]}  Bc8 {[%clk 0:00:28]} 13. Nb5 {[%clk 0:02:28]}  e4 {[%clk 0:00:21]} 14. Ng5 {[%clk 0:01:58]}  Ne5 {[%clk 0:00:20]} 15. Bxf7+ {[%clk 0:01:57]}  Nxf7 {[%clk 0:00:19]} 16. a4 {[%clk 0:01:38]}  Nxg5 {[%clk 0:00:19]} 17. h4 {[%clk 0:01:21]}  Nf7 {[%clk 0:00:18]} 18. Rhd1 {[%clk 0:01:18]}  Qb6 {[%clk 0:00:13]} 19. Rd4 {[%clk 0:01:11]}  a6 {[%clk 0:00:10]} 20. Rad1 {[%clk 0:00:27]}  axb5 {[%clk 0:00:10]} 21. Rb4 {[%clk 0:00:18]}  Qa6 {[%clk 0:00:09]} 22. Qxe4 {[%clk 0:00:16]}  bxa4+ {[%clk 0:00:09]} 23. Kxf2 {[%clk 0:00:16]}  Nd6 {[%clk 0:00:08]} 24. Qe3 {[%clk 0:00:15]}  Nf5 {[%clk 0:00:07]} 25. Qc5 {[%clk 0:00:12]}  Kf7 {[%clk 0:00:07]} 26. Rf4 {[%clk 0:00:12]}  Kg8 {[%clk 0:00:05]} 27. g4 {[%clk 0:00:11]}  Nxh4 {[%clk 0:00:04]} 28. Rd8 {[%clk 0:00:11]}  Nhg6 {[%clk 0:00:04]} 29. Qxe7 {[%clk 0:00:11]}  Qb6+ {[%clk 0:00:04]} 30. Kf1 {[%clk 0:00:07]}  Qb5+ {[%clk 0:00:04]} 31. c4 {[%clk 0:00:07]} 1-0


[Site "https://www.chess.com"]

[Event "Titled Tuesday Blitz February 01 A 2022"]
[White "Brodowski, Piotr"]
[Black "Bluebaum, Matthias"]
[WhiteFideId "1124480"]
[BlackFideId "24651516"]
[WhiteElo "2422"]
[BlackElo "2550"]
[Result "0-1"]
[Round "05"]
[TimeControl "180+1"]
[Date "2022.02.01"]
[WhiteClock "0:00:43"]
[BlackClock "0:01:07"]

1. c4 {[%clk 0:02:54]}  e6 {[%clk 0:02:59]} 2. Nf3 {[%clk 0:02:53]}  d5 {[%clk 0:02:59]} 3. e3 {[%clk 0:02:53]}  Nf6 {[%clk 0:02:58]} 4. Nc3 {[%clk 0:02:48]}  Bd6 {[%clk 0:02:58]} 5. Qc2 {[%clk 0:02:47]}  O-O {[%clk 0:02:58]} 6. b3 {[%clk 0:02:43]}  Re8 {[%clk 0:02:58]} 7. Bb2 {[%clk 0:02:43]}  c5 {[%clk 0:02:59]} 8. g4 {[%clk 0:02:31]}  d4 {[%clk 0:02:41]} 9. exd4 {[%clk 0:02:31]}  cxd4 {[%clk 0:02:42]} 10. Nxd4 {[%clk 0:02:31]}  e5 {[%clk 0:02:43]} 11. Nf5 {[%clk 0:02:28]}  Nc6 {[%clk 0:02:43]} 12. Ne4 {[%clk 0:01:55]}  Nd4 {[%clk 0:02:37]} 13. Bxd4 {[%clk 0:01:43]}  exd4 {[%clk 0:02:38]} 14. Bd3 {[%clk 0:01:42]}  Bxf5 {[%clk 0:01:46]} 15. gxf5 {[%clk 0:01:40]}  Nxe4 {[%clk 0:01:41]} 16. Bxe4 {[%clk 0:01:40]}  d3 {[%clk 0:01:36]} 17. Qxd3 {[%clk 0:01:34]}  Qh4 {[%clk 0:01:35]} 18. O-O-O {[%clk 0:01:07]}  Ba3+ {[%clk 0:01:34]} 19. Kc2 {[%clk 0:01:08]}  Qxe4 {[%clk 0:01:33]} 20. Rhe1 {[%clk 0:01:02]}  Qxd3+ {[%clk 0:01:30]} 21. Kxd3 {[%clk 0:01:02]}  Rad8+ {[%clk 0:01:28]} 22. Kc3 {[%clk 0:01:02]}  Rxe1 {[%clk 0:01:26]} 23. Rxe1 {[%clk 0:01:02]}  Bc5 {[%clk 0:01:27]} 24. f3 {[%clk 0:00:59]}  a5 {[%clk 0:01:23]} 25. Kc2 {[%clk 0:00:54]}  Bb4 {[%clk 0:01:18]} 26. Re2 {[%clk 0:00:54]}  Kf8 {[%clk 0:01:19]} 27. d3 {[%clk 0:00:51]}  Re8 {[%clk 0:01:19]} 28. Re4 {[%clk 0:00:51]}  Rxe4 {[%clk 0:01:15]} 29. fxe4 {[%clk 0:00:52]}  Bd6 {[%clk 0:01:12]} 30. h3 {[%clk 0:00:52]}  Be5 {[%clk 0:01:13]} 31. Kd2 {[%clk 0:00:52]}  Bd4 {[%clk 0:01:12]} 32. a3 {[%clk 0:00:52]}  Ke7 {[%clk 0:01:11]} 33. b4 {[%clk 0:00:52]}  a4 {[%clk 0:01:10]} 34. Kc2 {[%clk 0:00:49]}  g6 {[%clk 0:01:07]} 35. fxg6 {[%clk 0:00:42]}  fxg6 {[%clk 0:01:08]} 36. c5 {[%clk 0:00:43]}  g5 {[%clk 0:01:07]} 0-1


[Site "https://www.chess.com"]

[Event "Titled Tuesday Blitz February 01 A 2022"]
[White "Corrales Jimenez, Fidel"]
[Black "Danilenko, Dmitriy"]
[WhiteFideId "3506690"]
[BlackFideId "14120844"]
[WhiteElo "2541"]
[BlackElo "2606"]
[Result "1-0"]
[Round "05"]
[TimeControl "180+1"]
[Date "2022.02.01"]
[WhiteClock "0:00:50"]
[BlackClock "0:00:04"]

1. e4 {[%clk 0:03:00]}  Nf6 {[%clk 0:02:41]} 2. e5 {[%clk 0:02:58]}  Nd5 {[%clk 0:02:39]} 3. c4 {[%clk 0:02:57]}  Nb6 {[%clk 0:02:40]} 4. d4 {[%clk 0:02:55]}  d6 {[%clk 0:02:40]} 5. exd6 {[%clk 0:02:56]}  exd6 {[%clk 0:02:41]} 6. Nc3 {[%clk 0:02:56]}  Nc6 {[%clk 0:02:40]} 7. Be3 {[%clk 0:02:56]}  Be7 {[%clk 0:02:40]} 8. Bd3 {[%clk 0:02:57]}  O-O {[%clk 0:02:40]} 9. Nge2 {[%clk 0:02:57]}  Bg4 {[%clk 0:02:40]} 10. b3 {[%clk 0:02:57]}  Bg5 {[%clk 0:02:39]} 11. O-O {[%clk 0:02:54]}  Bxe3 {[%clk 0:02:37]} 12. fxe3 {[%clk 0:02:55]}  Qg5 {[%clk 0:02:36]} 13. Qd2 {[%clk 0:02:52]}  Rae8 {[%clk 0:02:34]} 14. Nf4 {[%clk 0:02:47]}  Qh6 {[%clk 0:02:00]} 15. Rf2 {[%clk 0:02:07]}  Nb4 {[%clk 0:01:48]} 16. Raf1 {[%clk 0:02:06]}  Nxd3 {[%clk 0:01:44]} 17. Qxd3 {[%clk 0:02:07]}  c6 {[%clk 0:01:43]} 18. e4 {[%clk 0:02:06]}  c5 {[%clk 0:01:31]} 19. dxc5 {[%clk 0:02:04]}  dxc5 {[%clk 0:01:31]} 20. Qg3 {[%clk 0:02:01]}  Bc8 {[%clk 0:01:21]} 21. e5 {[%clk 0:01:51]}  Rxe5 {[%clk 0:01:01]} 22. Ng6 {[%clk 0:01:50]}  Re3 {[%clk 0:01:01]} 23. Nxf8 {[%clk 0:00:49]}  Rxg3 {[%clk 0:01:00]} 24. Rxf7 {[%clk 0:00:50]}  Rxc3 {[%clk 0:00:28]} 25. Ne6 {[%clk 0:00:50]}  Qe3+ {[%clk 0:00:28]} 26. Kh1 {[%clk 0:00:50]}  Qf2 {[%clk 0:00:04]} 27. Rf8+ {[%clk 0:00:50]} 1-0


[Site "https://www.chess.com"]

[Event "Titled Tuesday Blitz February 01 A 2022"]
[White "Dubov, Daniil"]
[Black "Kozlov, Gennady"]
[WhiteFideId "24126055"]
[BlackFideId "4191668"]
[WhiteElo "2791"]
[BlackElo "2392"]
[Result "1-0"]
[Round "05"]
[TimeControl "180+1"]
[Date "2022.02.01"]
[WhiteClock "0:00:13"]
[BlackClock "0:00:42"]

1. d4 {[%clk 0:03:00]}  Nf6 {[%clk 0:02:58]} 2. Bf4 {[%clk 0:03:00]}  e6 {[%clk 0:02:56]} 3. Nf3 {[%clk 0:03:00]}  b6 {[%clk 0:02:52]} 4. e3 {[%clk 0:03:00]}  Bb7 {[%clk 0:02:52]} 5. c4 {[%clk 0:03:00]}  Be7 {[%clk 0:02:52]} 6. Nc3 {[%clk 0:02:59]}  O-O {[%clk 0:02:53]} 7. Bd3 {[%clk 0:02:59]}  d6 {[%clk 0:02:52]} 8. O-O {[%clk 0:02:58]}  c5 {[%clk 0:02:52]} 9. d5 {[%clk 0:02:58]}  e5 {[%clk 0:02:50]} 10. Bg3 {[%clk 0:02:57]}  Re8 {[%clk 0:02:50]} 11. Nd2 {[%clk 0:02:57]}  Bf8 {[%clk 0:02:50]} 12. f4 {[%clk 0:02:53]}  Nbd7 {[%clk 0:02:47]} 13. Qf3 {[%clk 0:02:51]}  Bc8 {[%clk 0:02:46]} 14. Rae1 {[%clk 0:02:50]}  Qe7 {[%clk 0:02:40]} 15. Bh4 {[%clk 0:02:49]}  Qd8 {[%clk 0:02:29]} 16. g4 {[%clk 0:02:45]}  Be7 {[%clk 0:02:26]} 17. g5 {[%clk 0:02:43]}  e4 {[%clk 0:02:23]} 18. Ndxe4 {[%clk 0:02:43]}  Nxe4 {[%clk 0:02:24]} 19. Nxe4 {[%clk 0:02:42]}  Nf8 {[%clk 0:02:24]} 20. f5 {[%clk 0:02:41]}  f6 {[%clk 0:02:21]} 21. gxf6 {[%clk 0:02:39]}  Bxf6 {[%clk 0:02:21]} 22. Nxf6+ {[%clk 0:02:22]}  gxf6 {[%clk 0:02:21]} 23. Kh1 {[%clk 0:02:23]}  Nd7 {[%clk 0:02:18]} 24. Rg1+ {[%clk 0:02:23]}  Kh8 {[%clk 0:02:18]} 25. Qh5 {[%clk 0:02:20]}  Qe7 {[%clk 0:02:15]} 26. Rg3 {[%clk 0:02:19]}  Bb7 {[%clk 0:02:15]} 27. Reg1 {[%clk 0:02:19]}  Rg8 {[%clk 0:02:10]} 28. Qh6 {[%clk 0:02:14]}  b5 {[%clk 0:02:05]} 29. b3 {[%clk 0:02:00]}  Rxg3 {[%clk 0:02:00]} 30. Rxg3 {[%clk 0:01:59]}  Rg8 {[%clk 0:02:00]} 31. Qf4 {[%clk 0:01:49]}  Ne5 {[%clk 0:01:57]} 32. Be2 {[%clk 0:01:46]}  Qf7 {[%clk 0:01:55]} 33. e4 {[%clk 0:01:45]}  bxc4 {[%clk 0:01:53]} 34. bxc4 {[%clk 0:01:39]}  Ba6 {[%clk 0:01:52]} 35. Qh6 {[%clk 0:01:39]}  Nd7 {[%clk 0:01:51]} 36. Kg1 {[%clk 0:01:04]}  Qe7 {[%clk 0:01:38]} 37. Qf4 {[%clk 0:00:49]}  Ne5 {[%clk 0:01:35]} 38. Kf2 {[%clk 0:00:27]}  Rb8 {[%clk 0:01:17]} 39. Qh6 {[%clk 0:00:26]}  Nd7 {[%clk 0:01:14]} 40. Rb3 {[%clk 0:00:20]}  Rf8 {[%clk 0:01:05]} 41. Ra3 {[%clk 0:00:20]}  Qxe4 {[%clk 0:01:00]} 42. Rxa6 {[%clk 0:00:19]}  Qd4+ {[%clk 0:01:00]} 43. Kf1 {[%clk 0:00:18]}  Rg8 {[%clk 0:00:58]} 44. Bg3 {[%clk 0:00:16]}  Qa1+ {[%clk 0:00:49]} 45. Kf2 {[%clk 0:00:16]}  Qb1 {[%clk 0:00:46]} 46. Ra3 {[%clk 0:00:14]}  Qe4 {[%clk 0:00:43]} 47. Re3 {[%clk 0:00:14]}  Qd4 {[%clk 0:00:43]} 48. Qf4 {[%clk 0:00:13]}  Qb2 {[%clk 0:00:42]} 49. Qxd6 {[%clk 0:00:13]} 1-0


[Site "https://www.chess.com"]

[Event "Titled Tuesday Blitz February 01 A 2022"]
[White "Garriga Cazorla, Pere"]
[Black "Durarbayli, Vasif"]
[WhiteFideId "32011601"]
[BlackFideId "13402935"]
[WhiteElo "2458"]
[BlackElo "2528"]
[Result "1-0"]
[Round "05"]
[TimeControl "180+1"]
[Date "2022.02.01"]
[WhiteClock "0:00:25"]
[BlackClock "0:00:20"]

1. d4 {[%clk 0:02:59]}  d5 {[%clk 0:02:57]} 2. c4 {[%clk 0:02:58]}  e6 {[%clk 0:02:57]} 3. Nc3 {[%clk 0:02:57]}  c6 {[%clk 0:02:56]} 4. Nf3 {[%clk 0:02:56]}  f5 {[%clk 0:02:53]} 5. Bf4 {[%clk 0:02:53]}  Nf6 {[%clk 0:02:53]} 6. e3 {[%clk 0:02:54]}  Be7 {[%clk 0:02:53]} 7. Bd3 {[%clk 0:02:54]}  O-O {[%clk 0:02:53]} 8. Ne5 {[%clk 0:02:55]}  Bd7 {[%clk 0:02:51]} 9. g4 {[%clk 0:02:53]}  fxg4 {[%clk 0:02:28]} 10. Rg1 {[%clk 0:02:36]}  Be8 {[%clk 0:02:26]} 11. Nxg4 {[%clk 0:02:32]}  Nbd7 {[%clk 0:02:23]} 12. Qf3 {[%clk 0:02:08]}  Bh5 {[%clk 0:02:22]} 13. Nxf6+ {[%clk 0:01:56]}  Nxf6 {[%clk 0:02:23]} 14. Qh3 {[%clk 0:01:56]}  Qc8 {[%clk 0:01:55]} 15. Be5 {[%clk 0:01:54]}  dxc4 {[%clk 0:01:36]} 16. Bxc4 {[%clk 0:01:32]}  Bf7 {[%clk 0:01:26]} 17. O-O-O {[%clk 0:01:30]}  Kh8 {[%clk 0:01:16]} 18. Bd3 {[%clk 0:01:18]}  Bg8 {[%clk 0:01:16]} 19. Rg3 {[%clk 0:00:50]}  Rf7 {[%clk 0:01:02]} 20. Bg6 {[%clk 0:00:41]}  Rf8 {[%clk 0:00:58]} 21. Rdg1 {[%clk 0:00:37]}  h6 {[%clk 0:00:20]} 22. Bc2 {[%clk 0:00:32]}  Rf7 {[%clk 0:00:20]} 23. Rxg7 {[%clk 0:00:25]} 1-0


[Site "https://www.chess.com"]

[Event "Titled Tuesday Blitz February 01 A 2022"]
[White "Grischuk, Alexander"]
[Black "Kamsky, Gata"]
[WhiteFideId "4126025"]
[BlackFideId "2000024"]
[WhiteElo "2762"]
[BlackElo "2645"]
[Result "1/2-1/2"]
[Round "05"]
[TimeControl "180+1"]
[Date "2022.02.01"]
[WhiteClock "0:00:02"]
[BlackClock "0:00:13"]

1. e4 {[%clk 0:03:00]}  e5 {[%clk 0:02:51]} 2. Nf3 {[%clk 0:03:00]}  Nc6 {[%clk 0:02:50]} 3. Bc4 {[%clk 0:02:59]}  Bc5 {[%clk 0:02:48]} 4. c3 {[%clk 0:02:59]}  Nf6 {[%clk 0:02:47]} 5. d3 {[%clk 0:02:59]}  d6 {[%clk 0:02:46]} 6. Bg5 {[%clk 0:02:58]}  h6 {[%clk 0:02:44]} 7. Bh4 {[%clk 0:02:58]}  Qe7 {[%clk 0:02:26]} 8. O-O {[%clk 0:02:41]}  g5 {[%clk 0:02:23]} 9. Bg3 {[%clk 0:02:40]}  a6 {[%clk 0:02:14]} 10. b4 {[%clk 0:02:38]}  Ba7 {[%clk 0:02:12]} 11. a4 {[%clk 0:02:38]}  O-O {[%clk 0:02:02]} 12. Nbd2 {[%clk 0:02:31]}  Kh8 {[%clk 0:01:45]} 13. b5 {[%clk 0:02:09]}  Na5 {[%clk 0:01:39]} 14. Ba2 {[%clk 0:02:08]}  Ne8 {[%clk 0:01:28]} 15. d4 {[%clk 0:01:59]}  f6 {[%clk 0:01:27]} 16. Re1 {[%clk 0:01:57]}  Ng7 {[%clk 0:01:27]} 17. Nf1 {[%clk 0:01:57]}  Bd7 {[%clk 0:01:14]} 18. Qd3 {[%clk 0:01:47]}  Be6 {[%clk 0:01:12]} 19. Ne3 {[%clk 0:01:41]}  Bxa2 {[%clk 0:01:11]} 20. Rxa2 {[%clk 0:01:42]}  Qf7 {[%clk 0:01:09]} 21. Rb2 {[%clk 0:01:31]}  axb5 {[%clk 0:01:02]} 22. axb5 {[%clk 0:01:26]}  exd4 {[%clk 0:01:02]} 23. cxd4 {[%clk 0:01:11]}  f5 {[%clk 0:01:01]} 24. exf5 {[%clk 0:01:07]}  Nxf5 {[%clk 0:01:01]} 25. Nxf5 {[%clk 0:01:07]}  Qxf5 {[%clk 0:01:00]} 26. Qc3 {[%clk 0:01:08]}  Bb6 {[%clk 0:00:56]} 27. Rbe2 {[%clk 0:01:03]}  Rf7 {[%clk 0:00:49]} 28. Re6 {[%clk 0:00:50]}  Kh7 {[%clk 0:00:48]} 29. h4 {[%clk 0:00:51]}  g4 {[%clk 0:00:43]} 30. Nd2 {[%clk 0:00:51]}  Rg8 {[%clk 0:00:39]} 31. R1e4 {[%clk 0:00:41]}  Qxb5 {[%clk 0:00:21]} 32. Bf4 {[%clk 0:00:27]}  Rg6 {[%clk 0:00:20]} 33. Rxg6 {[%clk 0:00:19]}  Kxg6 {[%clk 0:00:20]} 34. Qe3 {[%clk 0:00:17]}  Qf5 {[%clk 0:00:19]} 35. Bxh6 {[%clk 0:00:11]}  Nc6 {[%clk 0:00:19]} 36. Bg5 {[%clk 0:00:09]}  d5 {[%clk 0:00:17]} 37. Rf4 {[%clk 0:00:09]}  Qd7 {[%clk 0:00:15]} 38. Qd3+ {[%clk 0:00:07]}  Kg7 {[%clk 0:00:15]} 39. Rxf7+ {[%clk 0:00:05]}  Qxf7 {[%clk 0:00:16]} 40. Be3 {[%clk 0:00:05]}  Qg6 {[%clk 0:00:15]} 41. Qc3 {[%clk 0:00:04]}  Qf5 {[%clk 0:00:15]} 42. g3 {[%clk 0:00:03]}  Ba5 {[%clk 0:00:15]} 43. Qc1 {[%clk 0:00:02]}  Bxd2 {[%clk 0:00:14]} 44. Qxd2 {[%clk 0:00:03]}  Nd8 {[%clk 0:00:14]} 45. Bf4 {[%clk 0:00:02]}  Ne6 {[%clk 0:00:14]} 46. Be5+ {[%clk 0:00:03]}  Kh7 {[%clk 0:00:14]} 47. Qb4 {[%clk 0:00:03]}  b6 {[%clk 0:00:14]} 48. Qe7+ {[%clk 0:00:02]}  Kg6 {[%clk 0:00:13]} 49. Qe8+ {[%clk 0:00:02]}  Kh7 {[%clk 0:00:13]} 50. Qh8+ {[%clk 0:00:02]}  Kg6 {[%clk 0:00:13]} 51. Qg8+ {[%clk 0:00:02]}  Kh6 {[%clk 0:00:13]} 52. Qh8+ {[%clk 0:00:02]}  Kg6 {[%clk 0:00:13]} 53. Qe8+ {[%clk 0:00:02]}  Kh7 {[%clk 0:00:13]} 54. Qh8+ {[%clk 0:00:02]}  Kg6 {[%clk 0:00:13]} 1/2-1/2


[Site "https://www.chess.com"]

[Event "Titled Tuesday Blitz February 01 A 2022"]
[White "Hakemi, Arman"]
[Black "Kravtsiv, Martyn"]
[WhiteFideId "22520805"]
[BlackFideId "14113147"]
[WhiteElo "2208"]
[BlackElo "2694"]
[Result "0-1"]
[Round "05"]
[TimeControl "180+1"]
[Date "2022.02.01"]
[WhiteClock "0:00:07"]
[BlackClock "0:00:14"]

1. e4 {[%clk 0:03:00]}  e5 {[%clk 0:02:59]} 2. Nf3 {[%clk 0:02:51]}  Nc6 {[%clk 0:02:59]} 3. Nc3 {[%clk 0:02:43]}  Nf6 {[%clk 0:02:58]} 4. d4 {[%clk 0:02:41]}  exd4 {[%clk 0:02:57]} 5. Nxd4 {[%clk 0:02:42]}  Bb4 {[%clk 0:02:57]} 6. Nxc6 {[%clk 0:02:41]}  bxc6 {[%clk 0:02:57]} 7. Bd3 {[%clk 0:02:42]}  O-O {[%clk 0:02:56]} 8. O-O {[%clk 0:02:41]}  d5 {[%clk 0:02:57]} 9. exd5 {[%clk 0:02:42]}  cxd5 {[%clk 0:02:57]} 10. h3 {[%clk 0:02:43]}  c6 {[%clk 0:02:46]} 11. Qf3 {[%clk 0:02:41]}  Bd6 {[%clk 0:02:40]} 12. Bf4 {[%clk 0:02:42]}  Rb8 {[%clk 0:02:39]} 13. b3 {[%clk 0:02:42]}  Rb4 {[%clk 0:02:38]} 14. Bxd6 {[%clk 0:02:42]}  Qxd6 {[%clk 0:02:39]} 15. Qg3 {[%clk 0:02:42]}  Qxg3 {[%clk 0:02:36]} 16. fxg3 {[%clk 0:02:43]}  Re8 {[%clk 0:02:34]} 17. a3 {[%clk 0:02:39]}  Rb7 {[%clk 0:02:31]} 18. Na4 {[%clk 0:02:39]}  Rbe7 {[%clk 0:02:29]} 19. Nc5 {[%clk 0:02:35]}  h5 {[%clk 0:02:24]} 20. Kf2 {[%clk 0:02:32]}  Nd7 {[%clk 0:02:24]} 21. Nxd7 {[%clk 0:02:29]}  Bxd7 {[%clk 0:02:25]} 22. Rae1 {[%clk 0:02:29]}  Kf8 {[%clk 0:02:23]} 23. c4 {[%clk 0:02:22]}  d4 {[%clk 0:02:13]} 24. Rxe7 {[%clk 0:02:18]}  Rxe7 {[%clk 0:02:11]} 25. Re1 {[%clk 0:02:19]}  c5 {[%clk 0:02:07]} 26. b4 {[%clk 0:02:03]}  Rxe1 {[%clk 0:02:06]} 27. Kxe1 {[%clk 0:02:03]}  Ke7 {[%clk 0:02:05]} 28. Kf2 {[%clk 0:01:44]}  Kd6 {[%clk 0:02:05]} 29. Kf3 {[%clk 0:01:40]}  g5 {[%clk 0:01:21]} 30. h4 {[%clk 0:01:21]}  f6 {[%clk 0:01:14]} 31. Bg6 {[%clk 0:01:05]}  Be6 {[%clk 0:01:03]} 32. Bxh5 {[%clk 0:00:40]}  Bxc4 {[%clk 0:01:01]} 33. bxc5+ {[%clk 0:00:41]}  Kxc5 {[%clk 0:01:00]} 34. Bg6 {[%clk 0:00:42]}  Bd5+ {[%clk 0:00:49]} 35. Kf2 {[%clk 0:00:32]}  Kd6 {[%clk 0:00:36]} 36. h5 {[%clk 0:00:30]}  Ke7 {[%clk 0:00:35]} 37. h6 {[%clk 0:00:27]}  Kf8 {[%clk 0:00:36]} 38. Ke2 {[%clk 0:00:27]}  Bc4+ {[%clk 0:00:20]} 39. Kd2 {[%clk 0:00:27]}  Kg8 {[%clk 0:00:19]} 40. Bf5 {[%clk 0:00:27]}  Kh8 {[%clk 0:00:19]} 41. g4 {[%clk 0:00:27]}  Bb5 {[%clk 0:00:17]} 42. g3 {[%clk 0:00:27]}  Bc4 {[%clk 0:00:17]} 43. Kc2 {[%clk 0:00:21]}  a5 {[%clk 0:00:17]} 44. Kd2 {[%clk 0:00:19]}  Kg8 {[%clk 0:00:17]} 45. Bc2 {[%clk 0:00:17]}  Bb5 {[%clk 0:00:14]} 46. Bb3+ {[%clk 0:00:16]}  Kh7 {[%clk 0:00:13]} 47. a4 {[%clk 0:00:15]}  Ba6 {[%clk 0:00:12]} 48. Bc2+ {[%clk 0:00:13]}  Kxh6 {[%clk 0:00:12]} 49. Bd3 {[%clk 0:00:14]}  Bb7 {[%clk 0:00:12]} 50. Bf5 {[%clk 0:00:12]}  Ba6 {[%clk 0:00:11]} 51. Bd3 {[%clk 0:00:13]}  Bb7 {[%clk 0:00:12]} 52. Bf5 {[%clk 0:00:11]}  Bc6 {[%clk 0:00:12]} 53. Kd3 {[%clk 0:00:04]}  Bxa4 {[%clk 0:00:12]} 54. Kxd4 {[%clk 0:00:05]}  Kg7 {[%clk 0:00:11]} 55. Kc5 {[%clk 0:00:05]}  Bd1 {[%clk 0:00:11]} 56. Kb5 {[%clk 0:00:03]}  a4 {[%clk 0:00:12]} 57. Kb4 {[%clk 0:00:04]}  Kf7 {[%clk 0:00:12]} 58. Ka3 {[%clk 0:00:04]}  Ke7 {[%clk 0:00:12]} 59. Kb4 {[%clk 0:00:05]}  Kd6 {[%clk 0:00:12]} 60. Kc3 {[%clk 0:00:03]}  Ke5 {[%clk 0:00:12]} 61. Kd2 {[%clk 0:00:03]}  Bb3 {[%clk 0:00:12]} 62. Kc3 {[%clk 0:00:04]}  Be6 {[%clk 0:00:12]} 63. Bxe6 {[%clk 0:00:02]}  Kxe6 {[%clk 0:00:11]} 64. Kb4 {[%clk 0:00:03]}  Ke5 {[%clk 0:00:12]} 65. Kxa4 {[%clk 0:00:04]}  Ke4 {[%clk 0:00:12]} 66. Kb4 {[%clk 0:00:05]}  Kf3 {[%clk 0:00:13]} 67. Kc4 {[%clk 0:00:06]}  Kxg4 {[%clk 0:00:13]} 68. Kd4 {[%clk 0:00:06]}  Kxg3 {[%clk 0:00:14]} 69. Ke3 {[%clk 0:00:07]}  g4 {[%clk 0:00:14]} 0-1


[Site "https://www.chess.com"]

[Event "Titled Tuesday Blitz February 01 A 2022"]
[White "Kantans, Toms"]
[Black "Dobrov, Vladimir"]
[WhiteFideId "11602945"]
[BlackFideId "4136594"]
[WhiteElo "2357"]
[BlackElo "2614"]
[Result "0-1"]
[Round "05"]
[TimeControl "180+1"]
[Date "2022.02.01"]
[WhiteClock "0:00:16"]
[BlackClock "0:00:15"]

1. e4 {[%clk 0:03:00]}  c5 {[%clk 0:02:58]} 2. Nf3 {[%clk 0:03:00]}  Nc6 {[%clk 0:02:56]} 3. Bb5 {[%clk 0:03:00]}  e6 {[%clk 0:02:56]} 4. O-O {[%clk 0:03:00]}  Nge7 {[%clk 0:02:52]} 5. Ba4 {[%clk 0:02:59]}  b6 {[%clk 0:02:14]} 6. c3 {[%clk 0:02:48]}  Ba6 {[%clk 0:02:07]} 7. Re1 {[%clk 0:02:46]}  Bd3 {[%clk 0:01:58]} 8. Re3 {[%clk 0:02:38]}  c4 {[%clk 0:01:57]} 9. Ne1 {[%clk 0:02:37]}  Bxb1 {[%clk 0:01:43]} 10. Rxb1 {[%clk 0:02:38]}  g6 {[%clk 0:01:39]} 11. Qe2 {[%clk 0:02:26]}  d5 {[%clk 0:00:42]} 12. exd5 {[%clk 0:02:17]}  Qxd5 {[%clk 0:00:43]} 13. Re5 {[%clk 0:02:11]}  Qd6 {[%clk 0:00:41]} 14. Re4 {[%clk 0:01:25]}  a6 {[%clk 0:00:33]} 15. Bxc6+ {[%clk 0:01:21]}  Nxc6 {[%clk 0:00:32]} 16. Qxc4 {[%clk 0:01:14]}  Bg7 {[%clk 0:00:28]} 17. d4 {[%clk 0:01:12]}  O-O {[%clk 0:00:28]} 18. Bf4 {[%clk 0:01:10]}  Qd7 {[%clk 0:00:28]} 19. Nf3 {[%clk 0:01:00]}  Rfc8 {[%clk 0:00:28]} 20. Qe2 {[%clk 0:00:59]}  b5 {[%clk 0:00:26]} 21. a3 {[%clk 0:00:57]}  Qd5 {[%clk 0:00:25]} 22. Ne5 {[%clk 0:00:52]}  Ne7 {[%clk 0:00:24]} 23. Re1 {[%clk 0:00:46]}  a5 {[%clk 0:00:24]} 24. Nd3 {[%clk 0:00:41]}  Nf5 {[%clk 0:00:23]} 25. Be5 {[%clk 0:00:32]}  Bf8 {[%clk 0:00:21]} 26. Bf6 {[%clk 0:00:32]}  b4 {[%clk 0:00:20]} 27. axb4 {[%clk 0:00:24]}  axb4 {[%clk 0:00:21]} 28. Nxb4 {[%clk 0:00:21]}  Bxb4 {[%clk 0:00:21]} 29. cxb4 {[%clk 0:00:22]}  Qb3 {[%clk 0:00:18]} 30. g4 {[%clk 0:00:19]}  Rc2 {[%clk 0:00:16]} 31. Qf3 {[%clk 0:00:16]}  Qxf3 {[%clk 0:00:15]} 0-1


[Site "https://www.chess.com"]

[Event "Titled Tuesday Blitz February 01 A 2022"]
[White "Leiva, Gianmarco"]
[Black "Nesterov, Arseniy"]
[WhiteFideId "3804399"]
[BlackFideId "24198455"]
[WhiteElo "2328"]
[BlackElo "2489"]
[Result "0-1"]
[Round "05"]
[TimeControl "180+1"]
[Date "2022.02.01"]
[WhiteClock "0:00:01"]
[BlackClock "0:00:05"]

1. e4 {[%clk 0:02:55]}  e5 {[%clk 0:03:00]} 2. Nf3 {[%clk 0:02:55]}  Nc6 {[%clk 0:03:00]} 3. Bc4 {[%clk 0:02:55]}  Nf6 {[%clk 0:02:59]} 4. d3 {[%clk 0:02:54]}  Bc5 {[%clk 0:02:58]} 5. O-O {[%clk 0:02:53]}  d6 {[%clk 0:02:58]} 6. c3 {[%clk 0:02:52]}  O-O {[%clk 0:02:55]} 7. Re1 {[%clk 0:02:46]}  a5 {[%clk 0:02:53]} 8. h3 {[%clk 0:02:42]}  h6 {[%clk 0:02:52]} 9. Nbd2 {[%clk 0:02:42]}  a4 {[%clk 0:02:52]} 10. Nf1 {[%clk 0:02:41]}  Ra5 {[%clk 0:02:40]} 11. d4 {[%clk 0:02:17]}  exd4 {[%clk 0:02:16]} 12. cxd4 {[%clk 0:02:15]}  Bb4 {[%clk 0:02:16]} 13. Bd2 {[%clk 0:02:11]}  Bxd2 {[%clk 0:02:16]} 14. Qxd2 {[%clk 0:02:12]}  Nxe4 {[%clk 0:02:14]} 15. Rxe4 {[%clk 0:01:50]}  d5 {[%clk 0:02:14]} 16. Re5 {[%clk 0:01:51]}  Nxe5 {[%clk 0:02:01]} 17. Nxe5 {[%clk 0:01:51]}  dxc4 {[%clk 0:01:49]} 18. Qxa5 {[%clk 0:01:49]}  Qxd4 {[%clk 0:01:50]} 19. Ne3 {[%clk 0:01:39]}  Qxb2 {[%clk 0:01:44]} 20. Rd1 {[%clk 0:01:34]}  b5 {[%clk 0:01:01]} 21. Qxc7 {[%clk 0:01:29]}  Be6 {[%clk 0:01:00]} 22. Qc5 {[%clk 0:00:56]}  Rc8 {[%clk 0:00:40]} 23. Nc6 {[%clk 0:00:56]}  Kh7 {[%clk 0:00:38]} 24. a3 {[%clk 0:00:43]}  c3 {[%clk 0:00:22]} 25. Qb4 {[%clk 0:00:38]}  g6 {[%clk 0:00:11]} 26. Rd3 {[%clk 0:00:10]}  Rxc6 {[%clk 0:00:08]} 27. Qd4 {[%clk 0:00:03]}  Qb1+ {[%clk 0:00:05]} 28. Kh2 {[%clk 0:00:02]}  c2 {[%clk 0:00:05]} 29. Qf6 {[%clk 0:00:01]}  Rc8 {[%clk 0:00:05]} 0-1


[Site "https://www.chess.com"]